fUSD/lending_fUSD_20250402
["ID","MTS","AMOUNT","RATE_DAILY","PERIOD"]
[357018738,1743580047823,-500.0,0.00049863,120]
[357018739,1743580047850,-1041.66,0.00049863,120]
[357018740,1743580047876,-500.0,0.00049863,120]
[357018741,1743580047904,-500.0,0.00049863,120]
[357018742,1743580047929,-500.0,0.00049863,120]
[357018743,1743580047952,-500.0,0.00049863,120]
[357018744,1743580047985,-500.0,0.00049863,120]
[357018745,1743580048012,-500.0,0.00049863,120]
[357018746,1743580048038,-517.52585316,0.00049863,120]
[357018747,1743580048063,-500.0,0.00049863,120]
[357018748,1743580048088,-164.76604577,0.00049863,120]
[357018749,1743580048114,-1000.0,0.00049863,120]
[357018750,1743580048142,-500.0,0.00049863,120]
[357018751,1743580048168,-500.0,0.00049863,120]
[357018752,1743580048194,-500.0,0.00049863,120]
[357018753,1743580048219,-500.0,0.00049863,120]
[357018754,1743580048244,-81.65749375,0.00049863,120]
[357018755,1743580048438,-500.0,0.00049549,2]
[357018756,1743580048465,-500.0,0.00049588,120]
[357018757,1743580048492,-537.65871447,0.00049589,120]
[357018758,1743580048516,-500.0,0.00049862,120]
[357018759,1743580048538,-418.34250625,0.00049863,120]
[357018760,1743580048565,-500.0,0.00049863,120]
[357018761,1743580048744,-1000.41,0.00049863,30]
[357018762,1743580048765,-500.0,0.00049863,120]
[357018763,1743580048786,-500.0,0.00049863,120]
[357018764,1743580048807,-500.0,0.00049863,120]
[357018765,1743580048831,-500.0,0.00049863,120]
[357018766,1743580048852,-1077.97,0.00049863,120]
[357018767,1743580048878,-1799.71,0.00049863,120]
[357018768,1743580048898,-500.0,0.00049863,2]
[357018769,1743580048921,-202.90494178,0.00049863,120]
[357018770,1743580048940,-500.0,0.00049863,120]
[357018771,1743580048960,-500.0,0.00049863,120]
[357018772,1743580048980,-500.0,0.00049863,120]
[357018773,1743580049001,-500.0,0.00049863,120]
[357018774,1743580049033,-500.0,0.00049863,120]
[357018775,1743580049056,-500.0,0.00049863,120]
[357018776,1743580049080,-500.0,0.00049863,120]
[357018777,1743580049102,-500.0,0.00049863,120]
[357018778,1743580049123,-500.0,0.00049863,120]
[357018779,1743580049145,-184.21531803,0.00049863,120]
[357018780,1743580049166,-610.9,0.00049863,120]
[357018781,1743580049188,-536.67529741,0.00049863,120]
[357018782,1743580049210,-500.0,0.00049863,120]
[357018783,1743580049233,-500.0,0.00049863,120]
[357018784,1743580049255,-500.0,0.00049863,120]
[357018785,1743580049276,-500.0,0.00049863,120]
[357018786,1743580049297,-500.0,0.00049863,120]
[357018787,1743580049320,-500.0,0.00049863,120]
[357018788,1743580049342,-534.03905903,0.00049863,120]
[357018789,1743580049365,-500.0,0.00049863,120]
[357018790,1743580049387,-500.0,0.00049863,120]
[357018791,1743580049408,-500.0,0.00049863,120]
[357018792,1743580049430,-306.1550948,0.00049863,120]
[357018793,1743580049454,-839.53,0.00049863,120]
[357018794,1743580049476,-500.0,0.00049863,120]
[357018795,1743580049498,-500.0,0.00049863,120]
[357018796,1743580049519,-500.0,0.00049863,120]
[357018797,1743580049541,-500.0,0.00049863,120]
[357018798,1743580049562,-500.0,0.00049863,120]
[357018799,1743580049583,-500.0,0.00049863,120]
[357018800,1743580049606,-421.04822838,0.00049863,120]
[357018801,1743580049632,-457.56168892,0.00049863,120]
[357018802,1743580049656,-500.0,0.00049863,120]
[357018803,1743580049678,-500.0,0.00049863,120]
[357018804,1743580049701,-500.0,0.00049863,100]
[357018805,1743580049724,-500.0,0.00049863,120]
[357018806,1743580049746,-500.0,0.00049863,120]
[357018807,1743580049768,-500.0,0.00049863,120]
[357018808,1743580049789,-523.29290857,0.00049863,120]
[357018809,1743580049810,-500.0,0.00049863,120]
[357018810,1743580049833,-3106.21487212,0.0004988,120]
[357018811,1743580049855,-697.07230564,0.000499,15]
[357018812,1743580049877,-150.13,0.00049956,120]
[357018813,1743580049898,-250.43340066,0.0005,2]
[357018814,1743580049922,-956.29827524,0.00050036,22]
[357018815,1743580049943,-518.5,0.00050097,2]
[357018816,1743580049964,-10581.5818215,0.00050125,4]
[357018817,1743580050166,-515.8040561,0.00049315,120]
[357018818,1743580050188,-500.0,0.00049315,120]
[357018819,1743580050210,-511.93908469,0.00049315,120]
[357018820,1743580050231,-1021.67835516,0.00049315,120]
[357018821,1743580050253,-315.7970843,0.00049589,120]
[357018822,1743580050275,-4193.60402192,0.00050125,4]
[357018823,1743580050423,-14022.07985108,0.00050125,4]
[357018824,1743580050446,-14398.6328473,0.00050126,4]
[357018825,1743580050468,-500.0,0.00050135,120]
[357018826,1743580050489,-150.49686159,0.00050135,120]
[357018827,1743580050512,-521.86233351,0.00050135,120]
[357018828,1743580050533,-279.70138944,0.00050135,2]
[357018829,1743580050555,-500.0,0.00050135,120]
[357018830,1743580050576,-500.0,0.00050135,120]
[357018831,1743580050597,-500.0,0.00050135,2]
[357018832,1743580050617,-500.0,0.00050135,120]
[357018833,1743580050638,-500.0,0.00050135,120]
[357018834,1743580050659,-500.0,0.00050135,120]
[357018835,1743580050678,-500.0,0.00050135,2]
[357018836,1743580050697,-500.0,0.00050135,120]
[357018837,1743580050718,-310.92273767,0.00050135,120]
[357018838,1743580050738,-500.0,0.00050135,120]
[357018839,1743580050758,-500.0,0.00050135,120]
[357018840,1743580050778,-564.18278779,0.00050135,120]
[357018841,1743580050799,-526.1617748,0.00050135,120]
[357018842,1743580050821,-500.0,0.00050135,120]
[357018843,1743580050844,-555.59225395,0.00050135,120]
[357018844,1743580050865,-517.73348955,0.00050135,120]
[357018845,1743580050886,-527.33045053,0.00050135,120]
[357018846,1743580050908,-526.30185375,0.00050135,120]
[357018847,1743580050928,-518.56868237,0.00050135,120]
[357018848,1743580050948,-521.04855142,0.00050135,120]
[357018849,1743580050970,-551.17326149,0.00050135,120]
[357018850,1743580050990,-530.5539718,0.00050135,120]
[357018851,1743580051010,-500.0,0.00050135,120]
[357018852,1743580051031,-533.88944424,0.00050135,120]
[357018853,1743580051051,-558.12979623,0.00050135,120]
[357018854,1743580051077,-500.0,0.00050135,120]
[357018855,1743580051097,-500.0,0.00050135,120]
[357018856,1743580051119,-731.3,0.00050135,120]
[357018857,1743580051141,-560.33371832,0.00050135,120]
[357018858,1743580051174,-500.0,0.00050135,30]
[357018859,1743580051198,-500.0,0.00050135,120]
[357018860,1743580051220,-500.0,0.00050135,120]
[357018861,1743580051241,-493.6847501,0.00050135,120]
[357018862,1743580051263,-223.28279011,0.00050135,120]
[357018863,1743580051285,-500.0,0.00050135,120]
[357018864,1743580051306,-481.05106884,0.00050135,120]
[357018865,1743580051328,-534.12413282,0.00050135,120]
[357018866,1743580051349,-182.75095121,0.00050135,120]
[357018867,1743580051371,-513.94163217,0.00050135,120]
[357018868,1743580051394,-516.59261558,0.00050135,120]
[357018869,1743580051416,-172.42481433,0.00050135,120]
[357018870,1743580051437,-511.53378942,0.00050135,120]
[357018871,1743580051462,-535.00415638,0.00050135,120]
[357018872,1743580051483,-535.56884492,0.00050135,120]
[357018873,1743580051504,-557.15940042,0.00050135,120]
[357018874,1743580051526,-500.0,0.00050135,120]
[357018875,1743580051547,-500.0,0.00050135,120]
[357018876,1743580051568,-500.0,0.00050135,120]
[357018877,1743580051591,-538.33456966,0.00050135,120]
[357018878,1743580051613,-539.56718475,0.00050135,120]
[357018879,1743580051634,-526.25295605,0.00050135,120]
[357018880,1743580051656,-531.2514951,0.00050135,120]
[357018881,1743580051678,-540.451715,0.00050135,120]
[357018882,1743580051701,-521.58013664,0.00050135,120]
[357018883,1743580051722,-546.18589203,0.00050135,120]
[357018884,1743580051744,-500.0,0.00050135,120]
[357018885,1743580051922,-528.14214272,0.00050135,120]
[357018886,1743580051944,-510.78205389,0.00050135,120]
[357018887,1743580051966,-500.0,0.00050135,120]
[357018888,1743580051987,-564.33650432,0.00050135,120]
[357018889,1743580052011,-534.02544525,0.00050135,120]
[357018890,1743580052032,-514.73643424,0.00050135,120]
[357018891,1743580052053,-500.0,0.00050135,120]
[357018892,1743580052076,-500.0,0.00050135,120]
[357018893,1743580052097,-500.0,0.00050135,120]
[357018894,1743580052119,-528.05858635,0.00050135,120]
[357018895,1743580052140,-561.5023595,0.00050135,120]
[357018896,1743580052163,-500.0,0.00050135,120]
[357018897,1743580052184,-538.91765059,0.00050135,120]
[357018898,1743580052206,-641.38933858,0.00050135,120]
[357018899,1743580052227,-564.11634105,0.00050135,120]
[357018900,1743580052248,-549.45292784,0.00050135,120]
[357018901,1743580052269,-535.04968568,0.00050135,120]
[357018902,1743580052291,-500.0,0.00050135,120]
[357018903,1743580052313,-500.0,0.00050135,120]
[357018904,1743580052335,-542.00088441,0.00050135,120]
[357018905,1743580052355,-614.91485746,0.00050135,120]
[357018906,1743580052377,-500.0,0.00050135,120]
[357018907,1743580052398,-500.0,0.00050135,120]
[357018908,1743580052418,-500.0,0.00050135,120]
[357018909,1743580052440,-500.0,0.00050135,120]
[357018910,1743580052463,-500.0,0.00050135,120]
[357018911,1743580052484,-511.83728508,0.00050135,120]
[357018912,1743580052506,-500.0,0.00050135,120]
[357018913,1743580052527,-500.0,0.00050135,120]
[357018914,1743580052548,-500.0,0.00050135,120]
[357018915,1743580052570,-500.0,0.00050135,120]
[357018916,1743580052592,-500.0,0.00050135,120]
[357018917,1743580052612,-538.87307449,0.00050135,120]
[357018918,1743580052633,-568.72950483,0.00050135,120]
[357018919,1743580052656,-296.29326242,0.00050135,120]
[357018920,1743580052678,-500.0,0.00050135,7]
[357018921,1743580052698,-500.0,0.00050135,120]
[357018922,1743580052720,-500.0,0.00050135,120]
[357018923,1743580052743,-500.0,0.00050135,120]
[357018924,1743580052763,-505.59532006,0.00050135,120]
[357018925,1743580052784,-500.0,0.00050135,120]
[357018926,1743580052809,-500.0,0.00050135,120]
[357018927,1743580052836,-500.0,0.00050135,120]
[357018928,1743580052859,-537.41069432,0.00050135,120]
[357018929,1743580052882,-500.0,0.00050135,120]
[357018930,1743580052906,-500.0,0.00050135,120]
[357018931,1743580052928,-500.0,0.00050135,120]
[357018932,1743580052949,-150.0,0.00050135,120]
[357018933,1743580052971,-1636.16,0.00050135,120]
[357018934,1743580052993,-1800.33,0.00050135,120]
[357018935,1743580053015,-505.17618494,0.00050135,120]
[357018936,1743580053036,-1325.72,0.00050135,12]
[357018937,1743580053058,-1729.33,0.00050135,30]
[357018938,1743580053081,-500.0,0.00050135,120]
[357018939,1743580053106,-500.0,0.00050135,120]
[357018940,1743580053128,-500.0,0.00050135,120]
[357018941,1743580053151,-614.24047965,0.00050135,120]
[357018942,1743580053175,-500.0,0.00050135,120]
[357018943,1743580053198,-500.0,0.00050135,120]
[357018944,1743580053225,-500.0,0.00050135,120]
[357018945,1743580053248,-568.08040541,0.00050135,120]
[357018946,1743580053271,-588.06764427,0.00050135,120]
[357018947,1743580053293,-500.0,0.00050135,120]
[357018948,1743580053315,-500.0,0.00050135,120]
[357018949,1743580053337,-585.43575491,0.00050135,120]
[357018950,1743580053360,-500.0,0.00050135,120]
[357018951,1743580053382,-500.0,0.00050135,120]
[357018952,1743580053403,-500.0,0.00050135,120]
[357018953,1743580053425,-500.0,0.00050135,120]
[357018954,1743580053447,-500.0,0.00050135,120]
[357018955,1743580053468,-500.0,0.00050135,120]
[357018956,1743580053495,-539.65616015,0.00050135,120]
[357018957,1743580053517,-447.64370633,0.00050135,120]
[357018958,1743580053568,-87.60099822,0.00050135,120]
[357018959,1743580053596,-500.0,0.00050135,120]
[357018960,1743580053620,-929.24,0.00050135,120]
[357018961,1743580053642,-500.0,0.00050135,120]
[357018962,1743580053664,-535.97870682,0.00050135,120]
[357018963,1743580053687,-500.0,0.00050135,120]
[357018964,1743580053710,-579.18,0.00050135,120]
[357018965,1743580053732,-2593.03,0.00050135,120]
[357018966,1743580053755,-500.0,0.00050135,120]
[357018967,1743580053777,-532.81518868,0.00050135,120]
[357018968,1743580053799,-171.58211993,0.00050135,120]
[357018969,1743580053823,-500.0,0.00050135,120]
[357018970,1743580053848,-530.31118953,0.00050135,120]
[357018971,1743580053876,-500.0,0.00050135,120]
[357018972,1743580053900,-500.0,0.00050135,120]
[357018973,1743580053926,-540.80491287,0.00050135,120]
[357018974,1743580053948,-500.0,0.00050135,120]
[357018975,1743580053971,-534.40319393,0.00050135,120]
[357018976,1743580053992,-515.91074919,0.00050135,120]
[357018977,1743580054015,-525.7411043,0.00050135,120]
[357018978,1743580054036,-553.91177765,0.00050135,120]
[357018979,1743580054058,-500.0,0.00050135,120]
[357018980,1743580054081,-539.67885316,0.00050135,120]
[357018981,1743580054103,-500.0,0.00050135,120]
[357018982,1743580054125,-299.4605726,0.00050135,120]
[357018983,1743580054146,-551.01225957,0.00050135,120]
[357018984,1743580054168,-543.65761677,0.00050135,120]
[357018985,1743580054190,-534.36638694,0.00050135,120]
[357018986,1743580054211,-549.27357738,0.00050135,120]
[357018987,1743580054232,-523.82490561,0.00050135,120]
[357018988,1743580054254,-542.23303463,0.00050135,120]
[357018989,1743580054275,-500.0,0.00050135,120]
[357018990,1743580054296,-524.61843584,0.00050135,120]
[357018991,1743580054324,-500.0,0.00050136,2]
[357018992,1743580054345,-500.0,0.00050136,120]
[357018993,1743580054368,-500.0,0.00050136,10]
[357018994,1743580054389,-410.13046517,0.00050136,2]
[357018995,1743580054410,-871.39,0.00050136,120]
[357018996,1743580054431,-500.0,0.00050136,120]
[357018997,1743580054450,-516.74295438,0.00050136,120]
[357018998,1743580054471,-500.0,0.00050136,120]
[357018999,1743580054493,-500.0,0.00050136,120]
[357019000,1743580054516,-500.0,0.00050136,120]
[357019001,1743580054538,-500.0,0.00050136,120]
[357019002,1743580054560,-500.0,0.00050136,120]
[357019003,1743580054582,-500.0,0.00050136,120]
[357019004,1743580054603,-500.0,0.00050136,120]
[357019005,1743580054624,-500.0,0.00050136,120]
[357019006,1743580054645,-537.46821487,0.00050136,120]
[357019007,1743580054666,-807.16,0.00050136,120]
[357019008,1743580054687,-500.0,0.00050136,120]
[357019009,1743580054708,-500.0,0.00050136,120]
[357019010,1743580054730,-500.0,0.00050136,120]
[357019011,1743580054750,-515.41766681,0.00050136,120]
[357019012,1743580054772,-500.0,0.00050136,120]
[357019013,1743580054793,-500.0,0.00050136,120]
[357019014,1743580054814,-1041.66,0.00050136,120]
[357019015,1743580054841,-500.0,0.00050136,120]
[357019016,1743580054863,-500.0,0.00050136,120]
[357019017,1743580054885,-500.0,0.00050136,120]
[357019018,1743580054906,-249.42501319,0.00050136,120]
[357019019,1743580054927,-500.0,0.00050136,120]
[357019020,1743580054948,-500.0,0.00050136,120]
[357019021,1743580054970,-1000.0,0.00050136,120]
[357019022,1743580054992,-500.0,0.00050136,120]
[357019023,1743580055014,-500.0,0.00050136,120]
[357019024,1743580055036,-500.0,0.00050136,120]
[357019025,1743580055056,-500.0,0.00050136,120]
[357019026,1743580055078,-625.02111912,0.00050136,120]
[357019027,1743580055100,-598.24027712,0.00050136,120]
[357019028,1743580055247,-1000.41,0.00050136,30]
[357019029,1743580055269,-500.0,0.00050136,120]
[357019030,1743580055292,-500.0,0.00050136,120]
[357019031,1743580055314,-500.0,0.00050136,120]
[357019032,1743580055336,-500.0,0.00050136,120]
[357019033,1743580055357,-1077.97,0.00050136,120]
[357019034,1743580055378,-1799.71,0.00050136,120]
[357019035,1743580055401,-500.0,0.00050136,2]
[357019036,1743580055421,-500.0,0.00050136,120]
[357019037,1743580055441,-500.0,0.00050136,120]
[357019038,1743580055462,-500.0,0.00050136,120]
[357019039,1743580055483,-500.0,0.00050136,120]
[357019040,1743580055503,-500.0,0.00050136,120]
[357019041,1743580055523,-500.0,0.00050136,120]
[357019042,1743580055546,-500.0,0.00050136,120]
[357019043,1743580055569,-511.7808643,0.00050136,120]
[357019044,1743580055590,-610.9,0.00050136,120]
[357019045,1743580055611,-500.0,0.00050136,120]
[357019046,1743580055631,-253.75221488,0.00050136,120]
[357019047,1743580055654,-539.98727127,0.00050136,120]
[357019048,1743580055675,-500.0,0.00050136,120]
[357019049,1743580055697,-500.0,0.00050136,120]
[357019050,1743580055719,-500.0,0.00050136,120]
[357019051,1743580055741,-500.0,0.00050136,120]
[357019052,1743580055762,-944.54,0.00050136,120]
[357019053,1743580055784,-500.0,0.00050136,120]
[357019054,1743580055805,-500.0,0.00050136,120]
[357019055,1743580055829,-500.0,0.00050136,120]
[357019056,1743580055850,-500.0,0.00050136,120]
[357019057,1743580055871,-500.0,0.00050136,120]
[357019058,1743580055891,-500.0,0.00050136,120]
[357019059,1743580055917,-204.15,0.00050136,120]
[357019060,1743580055937,-500.0,0.00050136,120]
[357019061,1743580055958,-500.0,0.00050136,120]
[357019062,1743580055978,-500.0,0.00050136,120]
[357019063,1743580056000,-500.0,0.00050136,120]
[357019064,1743580056021,-500.0,0.00050136,120]
[357019065,1743580056043,-985.0,0.00050136,120]
[357019066,1743580056063,-500.0,0.00050136,120]
[357019067,1743580056088,-839.53,0.00050136,120]
[357019068,1743580056110,-500.0,0.00050136,120]
[357019069,1743580056131,-500.0,0.00050136,120]
[357019070,1743580056152,-500.0,0.00050136,120]
[357019071,1743580056173,-500.0,0.00050136,120]
[357019072,1743580056195,-500.0,0.00050136,120]
[357019073,1743580056215,-500.0,0.00050136,120]
[357019074,1743580056236,-500.0,0.00050136,120]
[357019075,1743580056258,-500.0,0.00050136,120]
[357019076,1743580056278,-500.0,0.00050136,120]
[357019077,1743580056299,-500.0,0.00050136,100]
[357019078,1743580056320,-500.0,0.00050136,120]
[357019079,1743580056341,-500.0,0.00050136,120]
[357019080,1743580056363,-500.0,0.00050136,120]
[357019081,1743580056384,-500.0,0.00050136,120]
[357019082,1743580056406,-500.0,0.00050136,120]
[357019083,1743580056428,-482.15,0.00050169,2]
[357019084,1743580056449,-14398.6328473,0.00050399,4]
[357019085,1743580056471,-14398.6328473,0.000504,4]
[357019086,1743580056493,-355.27038728,0.00050402,15]
[357019087,1743580056515,-500.0,0.00050409,120]
[357019088,1743580056537,-500.0,0.00050409,120]
[357019089,1743580056558,-530.05405339,0.00050409,120]
[357019090,1743580056585,-500.0,0.00050409,2]
[357019091,1743580056607,-500.0,0.00050409,120]
[357019092,1743580056629,-500.0,0.00050409,120]
[357019093,1743580056651,-500.0,0.00050409,120]
[357019094,1743580056674,-500.0,0.00050409,2]
[357019095,1743580056697,-204.99308264,0.00050409,120]
[357019096,1743580056720,-500.0,0.00050409,120]
[357019097,1743580056741,-500.0,0.00050409,120]
[357019098,1743580056763,-500.0,0.00050409,120]
[357019099,1743580056786,-525.26355,0.00050409,120]
[357019100,1743580056807,-537.9580584,0.00050409,120]
[357019101,1743580056833,-210.67947243,0.00050409,120]
[357019102,1743580056859,-731.3,0.00050409,120]
[357019103,1743580056881,-500.0,0.00050409,30]
[357019104,1743580056903,-500.0,0.00050409,120]
[357019105,1743580056926,-500.0,0.00050409,120]
[357019106,1743580056947,-500.0,0.00050409,120]
[357019107,1743580056969,-500.0,0.00050409,120]
[357019108,1743580056990,-500.0,0.00050409,120]
[357019109,1743580057011,-500.0,0.00050409,120]
[357019110,1743580057033,-500.0,0.00050409,120]
[357019111,1743580057057,-500.0,0.00050409,120]
[357019112,1743580057078,-500.0,0.00050409,120]
[357019113,1743580057099,-500.0,0.00050409,120]
[357019114,1743580057120,-544.15894938,0.00050409,120]
[357019115,1743580057142,-500.000002,0.00050409,120]
[357019116,1743580057163,-500.0,0.00050409,120]
[357019117,1743580057184,-500.0,0.00050409,120]
[357019118,1743580057205,-384.13,0.00050409,120]
[357019119,1743580057226,-306.43974539,0.00050409,120]
[357019120,1743580057247,-209.47,0.00050409,120]
[357019121,1743580057269,-500.0,0.00050409,120]
[357019122,1743580057293,-157.12,0.00050409,120]
[357019123,1743580057315,-571.73435147,0.00050409,120]
[357019124,1743580057337,-500.0,0.00050409,120]
[357019125,1743580057358,-570.13269626,0.00050409,120]
[357019126,1743580057379,-600.0,0.00050409,120]
[357019127,1743580057400,-500.0,0.00050409,7]
[357019128,1743580057421,-301.17506052,0.00050409,120]
[357019129,1743580057442,-500.0,0.00050409,120]
[357019130,1743580057465,-500.0,0.00050409,120]
[357019131,1743580057486,-475.47787391,0.00050409,120]
[357019132,1743580057506,-500.0,0.00050409,120]
[357019133,1743580057527,-150.0,0.00050409,120]
[357019134,1743580057548,-1636.16,0.00050409,120]
[357019135,1743580057570,-1800.33,0.00050409,120]
[357019136,1743580057591,-1325.72,0.00050409,12]
[357019137,1743580057612,-1729.33,0.00050409,30]
[357019138,1743580057633,-500.0,0.00050409,120]
[357019139,1743580057655,-500.0,0.00050409,120]
[357019140,1743580057676,-500.0,0.00050409,120]
[357019141,1743580057698,-500.0,0.00050409,120]
[357019142,1743580057719,-500.0,0.00050409,120]
[357019143,1743580057741,-500.0,0.00050409,120]
[357019144,1743580057763,-500.0,0.00050409,120]
[357019145,1743580057786,-500.0,0.00050409,120]
[357019146,1743580057808,-500.0,0.00050409,120]
[357019147,1743580057831,-517.52439055,0.00050409,120]
[357019148,1743580057852,-500.0,0.00050409,120]
[357019149,1743580057875,-530.33089004,0.00050409,120]
[357019150,1743580057898,-929.24,0.00050409,120]
[357019151,1743580057919,-500.0,0.00050409,120]
[357019152,1743580057940,-500.0,0.00050409,120]
[357019153,1743580057962,-579.18,0.00050409,120]
[357019154,1743580057983,-2593.03,0.00050409,120]
[357019155,1743580058004,-500.0,0.00050409,120]
[357019156,1743580058026,-528.44860791,0.00050409,120]
[357019157,1743580058046,-500.0,0.00050409,120]
[357019158,1743580058068,-524.98275974,0.00050409,120]
[357019159,1743580058091,-556.87693785,0.00050409,120]
[357019160,1743580058111,-600.0,0.0005041,2]
[357019161,1743580058132,-500.0,0.0005041,120]
[357019162,1743580058153,-259.18341951,0.0005041,10]
[357019163,1743580058174,-871.39,0.0005041,120]
[357019164,1743580058195,-500.0,0.0005041,120]
[357019165,1743580058322,-500.0,0.0005041,120]
[357019166,1743580058349,-500.0,0.0005041,120]
[357019167,1743580058370,-500.0,0.0005041,120]
[357019168,1743580058392,-500.0,0.0005041,120]
[357019169,1743580058413,-500.0,0.0005041,120]
[357019170,1743580058434,-500.0,0.0005041,120]
[357019171,1743580058455,-500.0,0.0005041,120]
[357019172,1743580058476,-807.16,0.0005041,120]
[357019173,1743580058497,-500.0,0.0005041,120]
[357019174,1743580058518,-527.28070621,0.0005041,120]
[357019175,1743580058539,-500.0,0.0005041,120]
[357019176,1743580058559,-500.0,0.0005041,120]
[357019177,1743580058581,-500.0,0.0005041,120]
[357019178,1743580058601,-1041.66,0.0005041,120]
[357019179,1743580058621,-500.0,0.0005041,120]
[357019180,1743580058641,-500.0,0.0005041,120]
[357019181,1743580058661,-500.0,0.0005041,120]
[357019182,1743580058681,-500.0,0.0005041,120]
[357019183,1743580058701,-528.2052616,0.0005041,120]
[357019184,1743580058722,-1000.0,0.0005041,120]
[357019185,1743580058752,-500.0,0.0005041,120]
[357019186,1743580058779,-500.0,0.0005041,120]
[357019187,1743580058801,-560.03798713,0.0005041,120]
[357019188,1743580058829,-500.0,0.0005041,120]
[357019189,1743580058851,-1000.41,0.0005041,30]
[357019190,1743580058875,-500.0,0.0005041,120]
[357019191,1743580058898,-500.0,0.0005041,120]
[357019192,1743580058922,-500.0,0.0005041,120]
[357019193,1743580058944,-500.0,0.0005041,120]
[357019194,1743580058966,-1077.97,0.0005041,120]
[357019195,1743580058989,-1799.71,0.0005041,120]
[357019196,1743580059011,-292.05715566,0.0005041,2]
[357019197,1743580059032,-500.0,0.0005041,120]
[357019198,1743580059054,-500.0,0.0005041,120]
[357019199,1743580059077,-500.0,0.0005041,120]
[357019200,1743580059098,-500.0,0.0005041,120]
[357019201,1743580059119,-500.0,0.0005041,120]
[357019202,1743580059140,-500.0,0.0005041,120]
[357019203,1743580059161,-500.0,0.0005041,120]
[357019204,1743580059183,-610.9,0.0005041,120]
[357019205,1743580059204,-500.0,0.0005041,120]
[357019206,1743580059224,-500.0,0.0005041,120]
[357019207,1743580059245,-500.0,0.0005041,120]
[357019208,1743580059266,-500.0,0.0005041,120]
[357019209,1743580059288,-500.0,0.0005041,120]
[357019210,1743580059309,-944.54,0.0005041,120]
[357019211,1743580059331,-500.0,0.0005041,120]
[357019212,1743580059357,-500.0,0.0005041,120]
[357019213,1743580059379,-500.0,0.0005041,120]
[357019214,1743580059404,-839.53,0.0005041,120]
[357019215,1743580059427,-500.0,0.0005041,120]
[357019216,1743580059453,-500.0,0.0005041,120]
[357019217,1743580059476,-500.0,0.0005041,120]
[357019218,1743580059498,-500.0,0.0005041,120]
[357019219,1743580059522,-500.0,0.0005041,120]
[357019220,1743580059544,-500.0,0.0005041,120]
[357019221,1743580059566,-500.0,0.0005041,120]
[357019222,1743580059592,-500.0,0.0005041,120]
[357019223,1743580059614,-500.0,0.0005041,120]
[357019224,1743580059635,-500.0,0.0005041,100]
[357019225,1743580059656,-573.24021994,0.0005041,120]
[357019226,1743580059678,-500.0,0.0005041,120]
[357019227,1743580059699,-500.0,0.0005041,120]
[357019228,1743580059720,-500.0,0.0005041,120]
[357019229,1743580059741,-500.0,0.0005041,120]
[357019230,1743580059762,-156.633322,0.00050442,30]
[357019231,1743580059786,-156.91,0.0005045,2]
[357019232,1743580059807,-537.6845,0.00050645,2]
[357019233,1743580059833,-14398.6328473,0.00050673,4]
[357019234,1743580059854,-14398.6328473,0.00050674,4]
[357019235,1743580059876,-174.9901063,0.00050683,120]
[357019236,1743580059897,-468.27819063,0.00050683,120]
[357019237,1743580059918,-500.0,0.00050683,2]